Cogmind - Beta 10.2 @@@ ROGUE MODE // 2020.12.09 @ 13:34:52 Player: Cracklepappy Result: Destroyed by 8R-AWN with 8R-AWN's Boregun Performance ------------- Evolutions (1) 500 Regions Visited (5) 1000 Robots Destroyed (46) 230 Value Destroyed (1211) 1211 Prototype IDs (25) 500 Alien Tech Used (0) 0 Bonus (346) 346 TOTAL SCORE: 3787 Bonus ------- High Alert Combat Kills 46 Aligned with FarCom 300 Cogmind --------- Core Integrity 0/400 Matter 89/300 Energy 100/100 System Corruption 0% Temperature Cool (0) Movement Core (1450) Ox28 Location -9/Exiles Parts ------- > --- POWER (1) -------- (None) > --- PROPULSION (2) --- (None) > --- UTILITY (4) ------ Humpback Salvage Targeting Computer Core Shielding > --- WEAPON (2) ------- Improved Assault Rifle Improved Assault Rifle > --- INVENTORY (24) --- Disposable Heat Sink Large Storage Unit Large Storage Unit Large Matter Pod (0) Advanced Weight Redist. System Advanced Terrain Scanner Salvage Targeting Computer Heavy Assault Rifle Grenade Launcher Rocket Launcher Mining Laser Katana Peak State ------------ > --- POWER ------------ Light Nuclear Core > --- PROPULSION ------- Light Treads Light Treads > --- UTILITY ---------- Humpback Salvage Targeting Computer Core Shielding > --- WEAPON ----------- Improved Assault Rifle Improved Assault Rifle > --- INVENTORY -------- Nuclear Core Light Fission Core Light Fission Core Disposable Heat Sink Large Storage Unit Large Storage Unit Large Matter Pod Advanced Weight Redist. System Advanced Terrain Scanner Salvage Targeting Computer Heavy Assault Rifle Improved Assault Rifle Improved Assault Rifle Grenade Launcher Rocket Launcher Mining Laser Katana [Rating: 20] Favorites ----------- Power Light Ion Engine Engine Light Ion Engine Power Core Light Nuclear Core Propulsion Light Treads Treads Light Treads Wheel Wheel Utility Large Storage Unit Device Disposable Heat Sink Storage Large Storage Unit Processor Salvage Targeting Computer Protection Core Shielding Weapon Improved Assault Rifle Energy Gun Medium Laser Energy Cannon Beam Cannon Ballistic Gun Improved Assault Rifle Launcher Rocket Launcher Special Weapon Mining Laser Build | -11 -10 -10 -9 -9 -9 ------- Run | Scr Mat Min Mat Min Exi Slots Evolved 2 | . . . 2 . . Power . | . . . . . . Propulsion . | . . . . . . Utility 2 | . . . 2 . . Weapon . | . . . . . . Parts Attached 48 | 8 5 7 13 6 9 Power 4 | 1 . 1 1 . 1 Engine 3 | 1 . 1 1 . . Core 1 | . . . . . 1 Reactor . | . . . . . . Propulsion 11 | 2 2 . 4 3 . Treads 9 | 1 1 . 4 3 . Leg . | . . . . . . Wheel 2 | 1 1 . . . . Hover . | . . . . . . Flight . | . . . . . . Utility 13 | 2 2 . 4 1 4 Device 1 | . . . . . 1 Storage 7 | 2 2 . 2 . 1 Processor 2 | . . . 1 . 1 Hackware . | . . . . . . Protection 3 | . . . 1 1 1 Artifact . | . . . . . . Weapon 20 | 3 1 6 4 2 4 Energy Gun 4 | 3 . 1 . . . Energy Cannon 3 | . . 2 1 . . Ballistic Gun 10 | . 1 1 3 2 3 Ballistic Cannon . | . . . . . . Launcher 1 | . . . . . 1 Special Weapon 2 | . . 2 . . . Impact Weapon . | . . . . . . Slashing Weapon . | . . . . . . Piercing Weapon . | . . . . . . Special Melee Weapon . | . . . . . . Unidentified Prototypes 1 | . . . 1 . . Parts Lost 23 | . 3 2 7 6 5 Power 4 | . 1 . 1 1 1 Propulsion 9 | . 2 . 3 2 2 Utility 3 | . . . 2 1 . Weapon 7 | . . 2 1 2 2 Highest Loss Streak 6 | . 1 2 2 6 3 Average Slot Usage (%) 90 | . 89 100 95 87 84 Engine 4 | . 4 14 10 . . Core 3 | . . . . . 7 Treads 19 | . 16 14 18 21 21 Wheel 3 | . 11 14 2 . . Storage 22 | . 28 28 24 33 15 Processor 4 | . . . 9 . 7 Protection 6 | . . . 6 10 9 Energy Gun 2 | . 21 6 . . . Energy Cannon 2 | . . 7 5 . . Ballistic Gun 17 | . 6 14 16 22 21 Naked Turns . | . . . . . . Heaviest Build 118 | 14 36 39 51 47 118 Greatest Support 40 | 16 40 10 40 40 40 Greatest Overweight (x) 4 | . 3 3 4 2 2 Average Overweight (x) 1 | . . 3 1 1 1 Largest Inventory Capacity 36 | 8 16 16 20 20 36 Average Capacity 19 | 5 12 16 16 20 23 Most Carried 17 | 5 16 16 17 17 17 Average Carried 14 | 3 11 14 15 14 15 Final Capacity 24 | 8 16 16 20 20 24 Final Carried 17 | 5 15 15 17 15 12 Class Distribution -------------------- 54% | Hauler-Mutant 45% | Mutant Dominant Class ---------------- Mutant | -10/Materials Mutant | -10/Mines Mutant | -9/Materials Hauler-Mutant | -9/Mines Hauler-Mutant | -9/Exiles Resources | -11 -10 -10 -9 -9 -9 ----------- Run | Scr Mat Min Mat Min Exi Matter Collected 1448 | 280 94 263 485 126 200 Remotely . | . . . . . . Salvage Created 1731 | 118 276 237 986 103 11 Parts 99 | 11 14 10 61 3 . Haulers Intercepted 2 | . . . 2 . . Recyclers Shooed 3 | . 1 1 1 . . Parts Field Recycled . | . . . . . . Retrieved Matter . | . . . . . . Parts Self-Destructed . | . . . . . . Prevented . | . . . . . . Kills | -11 -10 -10 -9 -9 -9 ------- Run | Scr Mat Min Mat Min Exi Combat Hostiles Destroyed 45 | . 9 10 19 2 5 Guns 34 | . 9 5 18 2 . Cannons 6 | . . 5 1 . . AOE 5 | . . . . . 5 Classes Destroyed 10 | 2 2 1 4 1 . Worker 1 | . . . 1 . . Tunneler 2 | 2 . . . . . Hauler 2 | . . . 2 . . Recycler 2 | 1 . . 1 . . Watcher 2 | . . . 2 . . Swarmer 9 | . 3 3 3 . . Grunt 23 | . 6 4 12 1 . Duelist 1 | . . . . 1 . Sentry 4 | . . . 4 . . Assembled 8 | . . 3 . . 5 Best Kill Streak 9 | 3 4 3 9 2 5 Combat Bots Only 8 | . 4 3 8 2 5 Max Kills in Single Turn 2 | 1 1 1 2 1 2 Gunslinging . | . . . . . . Exploded 2 | . . . . . 2 Melee . | . . . . . . Uniques/NPCs Destroyed . | . . . . . . Combat | -11 -10 -10 -9 -9 -9 -------- Run | Scr Mat Min Mat Min Exi Damage Taken 3391 | . 438 381 1061 554 957 Core 493 | . 48 42 153 108 142 Absorbed by Shields . | . . . . . . Core Remaining (%) 82 | 100 . 64 . . . Volleys Fired 221 | 11 31 36 76 16 51 Largest 2 | 2 2 2 2 2 2 Hottest 100 | 90 90 100 80 46 46 Shots Fired 428 | 22 62 66 152 32 94 Gun 370 | 22 62 38 130 32 86 Cannon 45 | . . 23 22 . . Launcher 8 | . . . . . 8 Special 5 | . . 5 . . . Kinetic 299 | . 20 31 130 32 86 Thermal 121 | 22 42 35 22 . . Explosive 8 | . . . . . 8 Electromagnetic . | . . . . . . Robot Hit Streak 34 | 6 18 9 34 14 9 Robot Miss Streak 5 | 3 5 4 3 1 3 Penetration Max . | . . . . . . Secondary Targets 3 | . . . 2 1 . Max Gunslinging Chain 1 | . . . 1 1 . Shots Hit Robots 307 | 15 40 37 116 28 71 Core Hits 94 | 4 15 14 36 4 21 Critical Hits 4 | . . . 3 . 1 Critical Kills 1 | . . . 1 . . Critical Parts Destroyed 3 | . . . 2 . 1 Melee Attacks . | . . . . . . Impact . | . . . . . . Slashing . | . . . . . . Piercing . | . . . . . . Sneak Attacks . | . . . . . . Combat Hostiles . | . . . . . . Follow-up Attacks . | . . . . . . Damage Inflicted 4634 | 161 422 492 1718 403 1438 Guns 3654 | 161 418 226 1400 403 1046 Cannons 582 | . . 266 316 . . Explosions 392 | . . . . . 392 Melee . | . . . . . . Ramming 6 | . 4 . 2 . . Kinetic 3150 | . 111 190 1400 403 1046 Thermal 1086 | 161 307 302 316 . . Explosive 392 | . . . . . 392 Electromagnetic . | . . . . . . Impact . | . . . . . . Slashing . | . . . . . . Piercing . | . . . . . . Highest Corruption 3 | . 3 3 . . . Average Corruption 2 | . 2 3 . . . Corruption Purged . | . . . . . . Effects 15 | . 1 14 . . . Message Errors 3 | . . 3 . . . Matter Fused 5 | . . 5 . . . Heat Flow Errors 2 | . . 2 . . . Energy Discharges 1 | . . 1 . . . Data Loss (minor) 2 | . 1 1 . . . Targeting Errors 2 | . . 2 . . . Overload Shots . | . . . . . . Overflow Damage 21 | . . . . . 21 Projectiles . | . . . . . . Explosions 21 | . . . . . 21 Melee . | . . . . . . Knockbacks . | . . . . . . Impact . | . . . . . . Kinetic . | . . . . . . Secondary . | . . . . . . Self-Inflicted Damage 6 | . . . . . 6 Shots 1 | . . . . . 1 Rammed 2 | . 1 . 1 . . Targets Rammed 2 | . 1 . 1 . . Kicked . | . . . . . . Crushed . | . . . . . . Highest Temperature 379 | 150 379 230 160 . 40 Average Temperature 77 | 63 152 85 41 . 19 Received Heat Transfer 859 | . 126 106 477 90 60 Effects 1 | . 1 . . . . Damage (minor) 1 | . 1 . . . . Siege Activations . | . . . . . . Robots Corrupted . | . . . . . . Combat Hostiles . | . . . . . . Parts Fried . | . . . . . . Impact Corruptions . | . . . . . . Robots Melted . | . . . . . . Combat Hostiles . | . . . . . . Parts Melted 2 | 2 . . . . . Heat Transferred 2632 | 434 866 666 666 . . Parts Sabotaged . | . . . . . . Parts Stolen . | . . . . . . Parts Stripped . | . . . . . . Power Chain Reactions . | . . . . . . Missiles Intercepted . | . . . . . . Alert | -11 -10 -10 -9 -9 -9 ------- Run | Scr Mat Min Mat Min Exi Peak Influence 594 | 15 274 176 594 231 . Initial 231 | . 9 106 . 231 . Average 128 | 4 120 121 146 142 . Maximum Alert Level 2 | . 1 . 2 1 . Low Security (%) 75 | 100 79 100 74 39 . Level 1 21 | . 20 . 15 60 . Level 2 2 | . . . 9 . . Level 3 . | . . . . . . Level 4 . | . . . . . . Level 5 . | . . . . . . High Security . | . . . . . . Max Security . | . . . . . . Squads Dispatched 5 | . 3 . 2 . . Investigation 2 | . 1 . 1 . . Extermination . | . . . . . . Reinforcement 3 | . 2 . 1 . . Assault . | . . . . . . Garrison . | . . . . . . Intercept . | . . . . . . Construction Impeded . | . . . . . . Haulers Reinforced . | . . . . . . Stealth | -11 -10 -10 -9 -9 -9 --------- Run | Scr Mat Min Mat Min Exi Distress Signals 4 | . 1 . 3 . . Communications Jammed . | . . . . . . Distress Signals . | . . . . . . Times Spotted 72 | . 14 10 40 2 6 Peak Tracking Total 9 | . 4 3 9 2 9 Tactical Retreats 9 | . . . 9 . . Traps | -11 -10 -10 -9 -9 -9 ------- Run | Scr Mat Min Mat Min Exi Traps Triggered 2 | . 2 . . . . Indirectly . | . . . . . . Trap Hack Attempts . | . . . . . . Triggered . | . . . . . . Disarmed . | . . . . . . Reprogrammed . | . . . . . . Reused . | . . . . . . Traps Extracted . | . . . . . . Installed . | . . . . . . Triggered . | . . . . . . Exploded 2 | . . . . . 2 Machines | -11 -10 -10 -9 -9 -9 ---------- Run | Scr Mat Min Mat Min Exi Machines Disabled 5 | . . . 1 . 4 Max in Single Turn 2 | . . . 1 . 2 Machines Sabotaged . | . . . . . . Garrisons Compromised . | . . . . . . Overloaded Fab Kills . | . . . . . . Fab Network Shutdowns . | . . . . . . Hacking | -11 -10 -10 -9 -9 -9 --------- Run | Scr Mat Min Mat Min Exi Machines Accessed 8 | . 2 . 4 . 2 Terminals 2 | . 1 . 1 . . Fabricators . | . . . . . . Repair Stations 1 | . . . 1 . . Recycling Units 2 | . 1 . 1 . . Scanalyzers 1 | . . . 1 . . Garrison Access . | . . . . . . Total Hacks 36 | . 3 . 9 . 24 Successful 32 | . 2 . 6 . 24 Failed 4 | . 1 . 3 . . Catastrophic . | . . . . . . Database Lockouts . | . . . . . . Manual 4 | . 1 . 2 . 1 Terminals 5 | . 2 . 3 . . Fabricators . | . . . . . . Repair Stations 2 | . . . 2 . . Recycling Units 2 | . 1 . 1 . . Scanalyzers 3 | . . . 3 . . Garrison Access . | . . . . . . Terminal Hacks 26 | . 1 . 1 . 24 Record 23 | . . . . . 23 Robot Analysis 1 | . . . 1 . . Hauler Manifests 1 | . 1 . . . . EX-Prototype ID Bank 1 | . . . . . 1 Fabricator Hacks . | . . . . . . Repair Station Hacks 2 | . . . 2 . . Scan Component 1 | . . . 1 . . Repair 1 | . . . 1 . . Recycling Unit Hacks . | . . . . . . Scanalyzer 2 | . . . 2 . . Insert Component 1 | . . . 1 . . Analyze 1 | . . . 1 . . Garrison Access Hacks . | . . . . . . Unauthorized Hacks 2 | . 1 . 1 . . Terminals . | . . . . . . Fabricators . | . . . . . . Repair Stations . | . . . . . . Recycling Units 2 | . 1 . 1 . . Tunnel 2 | . 1 . 1 . . Scanalyzers . | . . . . . . Garrison Access . | . . . . . . Data Cores Recovered . | . . . . . . Used . | . . . . . . Hacking Detections 4 | . 1 . 3 . . Full Trace Events 1 | . . . 1 . . Feedback Events . | . . . . . . Feedback Blocked . | . . . . . . Robot Schematics Acquired . | . . . . . . Robots Built . | . . . . . . Matter . | . . . . . . Time . | . . . . . . Total Robot Build Rating . | . . . . . . Part Schematics Acquired . | . . . . . . Parts Built . | . . . . . . Matter . | . . . . . . Time . | . . . . . . Total Part Build Rating . | . . . . . . Parts Repaired 1 | . . . 1 . . Time 26 | . . . 26 . . Parts Recycled . | . . . . . . Recycled Matter . | . . . . . . Retrieved Matter . | . . . . . . Retrieved Components . | . . . . . . Parts Scanalyzed 1 | . . . 1 . . Part Schematics Acquired . | . . . . . . Parts Damaged . | . . . . . . Bothacking | -11 -10 -10 -9 -9 -9 ------------ Run | Scr Mat Min Mat Min Exi Used RIF Installer . | . . . . . . Robots Hacked . | . . . . . . Non-combat . | . . . . . . Combat . | . . . . . . Robot Hacks Applied . | . . . . . . Relay Couplers Released . | . . . . . . Robots Rewired . | . . . . . . Allies Hacked . | . . . . . . Hacks Repelled . | . . . . . . Allies | -11 -10 -10 -9 -9 -9 -------- Run | Scr Mat Min Mat Min Exi Total Allies 2 | . . . . 2 . Largest Group 2 | . . . . 2 2 Highest-Rated Group 46 | . . . . 46 46 Highest-Rated Ally 31 | . . . . 31 31 Total Orders . | . . . . . . Ally Attacks . | . . . . . . Total Damage . | . . . . . . Kills . | . . . . . . Allies Corrupted . | . . . . . . Allies Melted . | . . . . . . Intel | -11 -10 -10 -9 -9 -9 ------- Run | Scr Mat Min Mat Min Exi Robot Analysis Total 1 | . . . 1 . . Derelict Logs Recovered 3 | . . 2 . 1 . Drone Launches . | . . . . . . Drone Recoveries . | . . . . . . Exploration | -11 -10 -10 -9 -9 -9 ------------- Run | Scr Mat Min Mat Min Exi Turns Passed 4530 | 118 374 804 783 651 1800 Spaces Moved 2297 | 68 216 608 248 324 833 Core 1 | 1 . . . . . Treads 1347 | . 20 . 170 324 833 Legs . | . . . . . . Wheels 949 | 67 196 608 78 . . Hover . | . . . . . . Flight . | . . . . . . Fastest Speed 50 | 50 100 110 110 180 160 Average Speed 155 | 99 110 110 159 180 193 Slowest Speed 200 | 100 180 110 200 200 200 Overloaded Moves . | . . . . . . Propulsion Burnouts . | . . . . . . Robots Hopped . | . . . . . . Cave-ins Triggered . | . . . . . . Exploration Rate (%) 52 | 5 38 95 35 72 71 Regions Visited 5 Branch Regions 3 Pre-discovered Areas 5 | . 1 . 1 2 1 Known Exits Taken 2 | . . 1 1 . . Unknown Exits Taken 3 | 1 1 . . 1 . Scrap Searched 1 | . . 1 . . . Spaces Dug . | . . . . . . Terrain Destroyed 50 | . . . . . 50 Melee . | . . . . . . Projectile . | . . . . . . AOE 50 | . . . . . 50 Terrain Rammed . | . . . . . . Walls Destroyed . | . . . . . . Machines Disabled . | . . . . . . Actions | -11 -10 -10 -9 -9 -9 --------- Run | Scr Mat Min Mat Min Exi Total 2829 | 92 289 669 490 359 930 Wait 187 | . 17 16 121 11 22 Move 2292 | 67 215 607 247 323 833 Hop . | . . . . . . Pick Up 52 | 6 15 3 20 3 5 Fast Attach 12 | 6 1 . 3 1 1 Attach 23 | 1 2 3 7 5 5 Detach 3 | . . . . . 3 Swap 14 | 1 2 4 4 . 3 Drop 23 | . 5 . 11 . 7 Fire 221 | 11 31 36 76 16 51 Melee . | . . . . . . Ram . | . . . . . . Kick . | . . . . . . Crush 2 | . 1 . 1 . . Escape Stasis . | . . . . . . Rewire . | . . . . . . Trap . | . . . . . . Miscellaneous . | . . . . . . Route ------- -11/Scrapyard -10/Materials -10/Mines (discovered 2 exits: *Mat x2) -9/Materials (discovered 2 exits: *Min x2) -9/Mines (discovered 3 exits: [*Mat x2] / *Exi) -9/Exiles (discovered 1 exit: [*Min]) History --------- Turn | Location | Event 24 | -11/Scrapyard | Discovered new exit (range 16) 119 | -11/Scrapyard | Entered Materials 313 | -10/Materials | Build established: Mutant 353 | -10/Materials | Discovered new exit (range 16) 493 | -10/Materials | Entered Mines 766 | -10/Mines | Discovered new exit (range 4) 843 | -10/Mines | Excavation squad dispatched 843 | -10/Mines | A large section of the Mines collapsed 1121 | -10/Mines | Found a damaged Exp. Sensor Array with a note attached 1123 | -10/Mines | Found Prototype Device 1254 | -10/Mines | Identified exit to Materials 1297 | -10/Mines | Entered Materials 1297 | -9/Materials | Evolved 2 slots: Utility x2 1298 | -9/Materials | Identified exit to Mines 1327 | -9/Materials | Identified Exp. Sensor Array 1354 | -9/Materials | Repaired Lgt. Treads 2075 | -9/Materials | Destroyed 8 combat bots 2080 | -9/Materials | Entered Mines 2104 | -9/Mines | Core integrity fell below 50% 2145 | -9/Mines | Lost 6 parts (1p2n1u2w) 2216 | -9/Mines | Build established: Hauler-Mutant 2221 | -9/Mines | Learned location of Storage (-8) 2339 | -9/Mines | Received a Rocket Launcher from a helpful Derelict 2390 | -9/Mines | Learned location of Zion (-6) 2462 | -9/Mines | Discovered new exit (range 12) 2498 | -9/Mines | Discovered new exit (range 5) 2710 | -9/Mines | Deemed a non-threat by the Exiles lab entrance 2712 | -9/Mines | Discovered new exit (range 5) 2731 | -9/Mines | Entered Exiles 2731 | -9/Exiles | Accompanied by 2 allies 2761 | -9/Exiles | Led the pair of lost Derelicts to a safe place 2776 | -9/Exiles | Met 8R-AWN 2805 | -9/Exiles | Met EX-HEX 2897 | -9/Exiles | Met EX-DEC 3010 | -9/Exiles | Discovered new exit (range 11) 3262 | -9/Exiles | Met EX-BIN 3293 | -9/Exiles | Aligned with FarCom system 3295 | -9/Exiles | Given EX-Vault access code 3341 | -9/Exiles | Opened EX-Vault 3387 | -9/Exiles | Warned to stay clear of 0b10 Research branches 4319 | -9/Exiles | Attacked by the Exiles 4441 | -9/Exiles | Core integrity fell below 20% 4514 | -9/Exiles | Lost 3 parts (2n1w) 4531 | -9/Exiles | Destroyed by 8R-AWN with 8R-AWN's Boregun Last Messages --------------- 04489_ Penetrated by HV Slug. 04492_ HV Slug penetrates Earth. 04496_ Penetrated by HV Slug. 04496_ HV Slug penetrates Earth. 04499_ Penetrated by HV Slug. 04499_ HV Slug penetrates Earth. 04501_ Dropped Lrg. Matter Pod. 04502_ Extracted 150 matter. 04502_ Acquired Lrg. Matter Pod. 04503_ HV Slug penetrates Wall. 04510_ Penetrated by HV Slug. 04510_ HV Slug penetrates Earth. 04517_ Machine disabled. 04520_ Penetrated by HV Slug. 04520_ Critical hit. 04520_ Imp. Assault Rifle destroyed. 04520_ HV Slug penetrates Earth. 04527_ HV Slug penetrates Wall. 04527_ HV Slug penetrates Earth. 04531_ Penetrated by HV Slug. Map ----- +----------------------------------------------------+ | ?????????????????????????????????????????????????? | | ?????????????????????????????????????????????????? | | ?????????????????????????????????????????????????? | | ?????????????????????????????????????????????????? | | ?????????????????????????????????????????????????? | | ?????????????????????????????????????????????????? | | ?????????????????????????????????????????????????? | | ?????????????????????????????????????????????????? | | ?????????????????????????????????????????????????? | | ???????????????????????????????????????????????### | | ???????????????????????????????????????????????""" | | #####?????????????????????????????????????????"""" | | # ##????????????????????????? ????????????#""X" | | #????????????????????????# ?????????????#" | | < !#???????????????????????# ?????????????#" | | !###????????????????????# #?????????????#"""" | | #???????????????????# #??????????????#"## | | ##??????????????????? ??????????????????? | | # #??????????????#????# #??????????????????? | | # ##?????????????# ??? #??????????????????? | | ## #????????????##;###; ???????????????????? | | ?# #######?????##!!! ; #???????????????????? | | ?# #""##???## ; #???????????????????? | | ?## #??## #????????????????????? | | ??##" ##?# # #??????????######?????? | | ??#"" #### @##?????????? """#????? | | ??#### # ?????????#"" """#????? | | ?????## # ##????????#"" #????? | | ??????#"## g ###?????????#"" ?????? | | ??????####### #??????????#"" "#????? | | ????????????### ###???????# ""?????? | | ??????########" #????????"" "??????? | | ??????# !!"""" ##?????????# #??????? | | ??????#! "### #####???### ###?#### | | ??????#! "## * """#####X# #"###""" | | ??????#! ### """""" | | ??????# """"""###?# # "" """ | | ??????##########???# " " | | ???????????????????##### | | ????????????????????????##### | | ????????????????????????????## | | ?????????????????????????????## | | ??????????????????????????????##" | | ???????????????????????????????#""" | | ??????????????????????????????##" | | ??????????????????????????????#"" ""# | | ?????????????????????????????##""" """## | | ?????????????????????????????#""" """##? | | ?????????????????????????????#""" ""#?? | | ?????????????????????????????#"" #### | +----------------------------------------------------+ Best States ------------- Heat Dissipation 28 Coolant Potential 50 Energy Generation 14 Energy Capacity 250 Matter Stores 361 Matter Capacity 450 Sight Range 16 Terrain Scan Density 10 Armor Coverage 150 Core Shielding 20 Evasion (%) 40 Targeting Accuracy 5 Recoil Reduction 2 Salvage Targeting 1 Item Schematics ----------------- None Robot Schematics ------------------ None Fabricated ------------ Nothing Alien Tech Used ----------------- None Achievements -------------- None Challenges ------------ None Game ------ Seed SigixGhostFalx Manual? 0 Play Time 00:27:04 Cumulative 249.4 hours Start 2020.12.09 @ 12:46:16 End 2020.12.09 @ 13:34:52 Sessions 1 Manual Loads 0 Difficulty Rogue Special Mode None Game No. 265 Rogue 265 Adventurer 0 Explorer 0 Win Type - Total 2 Types 2/0/0/0/0/0/0/0/0 Lore% 62 Gallery% 77 Achievement% 58 Wizard Run 0 Options --------- ASCII 0 Keyboard 0 Movement Numpad Keybinds 0 Fullscreen 2 Font 24/Terminus Map View 76x50 Tactical HUD 1 Map Filters NONE Filters NONE Steam 1 RUN: 44c0fcbb-4120-4fe0-b5f6-35add538e3f8